Cogmind - Beta 13 @@@ ROGUE MODE // 2024.04.11 @ 13:31:14 Player: Rocketboy Result: Destroyed by Y-45 Defender with Heavy Assault Rifle Performance ------------- Evolutions (2) 1000 Regions Visited (4) 800 Robots Destroyed (36) 180 Value Destroyed (871) 871 Prototype IDs (1) 20 Alien Tech Used (0) 0 Bonus (222) 222 TOTAL SCORE: 3093 Bonus ------- High Alert Combat Kills 22 Entered Garrisons 200 Cogmind --------- Core Integrity 0/550 Matter 290/300 Energy 31/100 System Corruption 0% Temperature Cool (0) Movement Hovering (80) Location -8/Garrison Parts ------- > --- POWER (1) -------- (None) > --- PROPULSION (4) --- Aluminum Leg Gyrokinetic Inverter > --- UTILITY (4) ------ Point Defense System > --- WEAPON (2) ------- (None) > --- INVENTORY (5) ---- Heavy Assault Rifle Hypervelocity Coil Gun Enhanced Gauss Cannon Datajack Peak State ------------ > --- POWER ------------ Improved Ion Engine > --- PROPULSION ------- Armored Treads Advanced Treads Advanced Treads Advanced Treads > --- UTILITY ---------- Medium Storage Unit Compact Battery Signal Interpreter Improved Terrain Scanner > --- WEAPON ----------- Particle Gun Improved Assault Rifle > --- INVENTORY -------- Improved Ion Engine Light Nuclear Core Advanced Treads Cesium-ion Thruster Cesium-ion Thruster Cesium-ion Thruster Particle Gun Rocket Launcher Datajack [Rating: 29] Favorites ----------- Power Improved Ion Engine Engine Improved Ion Engine Power Core Light Nuclear Core Propulsion Advanced Treads Treads Advanced Treads Leg Aluminum Leg Hover Unit Gyrokinetic Inverter Utility Medium Storage Unit Device Improved Terrain Scanner Storage Medium Storage Unit Processor Signal Interpreter Protection Improved Propulsion Shielding Weapon Particle Gun Energy Gun Particle Gun Ballistic Gun Improved Assault Rifle Ballistic Cannon Enhanced Gauss Cannon Launcher Rocket Launcher Build | -11 -10 -9 -8 -8 ------- Run | Yrd Mat Mat Mat Gar Slots Evolved 4 | . . 2 2 . Power . | . . . . . Propulsion 2 | . . . 2 . Utility 2 | . . 2 . . Weapon . | . . . . . Parts Attached 48 | 7 9 7 5 20 Power 5 | 1 . 1 . 3 Engine 3 | 1 . 1 . 1 Core 2 | . . . . 2 Reactor . | . . . . . Propulsion 13 | 2 . 3 5 3 Treads 11 | 2 . 3 5 1 Leg 1 | . . . . 1 Wheel . | . . . . . Hover 1 | . . . . 1 Flight . | . . . . . Utility 13 | 2 4 2 . 5 Device 6 | 1 . 1 . 4 Storage 5 | 1 3 . . 1 Processor 1 | . 1 . . . Hackware . | . . . . . Protection 1 | . . 1 . . Artifact . | . . . . . Weapon 17 | 2 5 1 . 9 Energy Gun 7 | 1 3 . . 3 Energy Cannon . | . . . . . Ballistic Gun 6 | 1 . 1 . 4 Ballistic Cannon 1 | . . . . 1 Launcher 3 | . 2 . . 1 Special Weapon . | . . . . . Impact Weapon . | . . . . . Slashing Weapon . | . . . . . Piercing Weapon . | . . . . . Special Melee Weapon . | . . . . . Unidentified Prototypes 1 | . . 1 . . Parts Lost 16 | . . . 1 15 Power 2 | . . . . 2 Propulsion 4 | . . . . 4 Utility 5 | . . . 1 4 Weapon 5 | . . . . 5 Highest Loss Streak 13 | . . . 1 13 To Critical Strikes . | . . . . . Average Slot Usage (%) 94 | . 99 95 95 79 Engine 10 | . 14 11 9 6 Treads 28 | . 28 22 36 27 Device 8 | . 5 11 9 10 Storage 11 | . 14 11 9 10 Processor 8 | . 8 11 9 7 Protection 2 | . . 7 4 . Energy Gun 16 | . 22 17 9 9 Ballistic Gun 5 | . 4 4 9 4 Naked Turns 7 | . . . . 7 Heaviest Build 26 | 13 22 26 26 25 Greatest Support 86 | 40 40 44 86 86 Greatest Overweight (x) 3 | . . 1 . 3 Average Overweight (x) . | . . . . . Largest Inventory Capacity 25 | 8 25 10 10 10 Average Capacity 9 | 6 9 10 10 6 Most Carried 10 | 4 10 10 10 9 Average Carried 7 | 3 8 9 9 4 Final Capacity 10 | 8 10 10 10 5 Final Carried 10 | 4 10 10 10 4 Class Distribution -------------------- 90% | Mutant 9% | Scavenger-Mutant Dominant Class ---------------- Mutant | -10/Materials Mutant | -9/Materials Mutant | -8/Materials Scavenger-Mutant | -8/Garrison Resources | -11 -10 -9 -8 -8 ----------- Run | Yrd Mat Mat Mat Gar Matter Collected 854 | 236 219 46 164 189 Remotely . | . . . . . Salvage Created 1074 | 25 404 125 232 288 Parts 75 | 3 30 11 21 10 Haulers Intercepted 2 | . 2 . . . Recyclers Shooed . | . . . . . Parts Field Recycled . | . . . . . Retrieved Matter . | . . . . . Parts Self-Destructed . | . . . . . Prevented . | . . . . . Kills | -11 -10 -9 -8 -8 ------- Run | Yrd Mat Mat Mat Gar Combat Hostiles Destroyed 28 | . 9 2 11 6 Guns 25 | . 8 2 10 5 AOE 2 | . 1 . . 1 Classes Destroyed 8 | 1 5 1 1 . Worker 1 | . 1 . . . Tunneler 1 | 1 . . . . Hauler 2 | . 2 . . . Operator 1 | . . 1 . . Watcher 3 | . 2 1 . . Swarmer 12 | . 3 . 9 . Grunt 10 | . 6 2 . 2 Sentry 6 | . . . 2 4 Best Kill Streak 4 | 1 4 2 4 3 Combat Bots Only 4 | . 3 2 4 3 Max Kills in Single Turn 2 | 1 1 1 2 1 Gunslinging 1 | . . . 1 . Exploded 1 | . 1 . . 1 Melee . | . . . . . Uniques/NPCs Destroyed . | . . . . . Combat | -11 -10 -9 -8 -8 -------- Run | Yrd Mat Mat Mat Gar Hostile Shots Fired 269 | . 36 6 65 162 Missed 59 | . 11 1 16 31 Damage Taken 2869 | . 303 67 557 1942 Core 685 | . 118 16 66 485 Absorbed by Shields . | . . . . . Redirected to Shielding 100 | . . 21 79 . Regen/Repaired (Parts) 5 | . . . 5 . Core Remaining (%) 82 | 100 52 96 . . Volleys Fired 102 | 1 27 8 31 35 Largest 2 | 2 2 2 2 2 Hottest 130 | 70 130 130 88 121 Shots Fired 191 | 2 55 16 54 64 Gun 188 | 2 53 16 54 63 Cannon . | . . . . . Launcher 3 | . 2 . . 1 Special . | . . . . . Kinetic 57 | 1 9 1 25 21 Thermal 131 | 1 44 15 29 42 Explosive 3 | . 2 . . 1 Electromagnetic . | . . . . . Robot Hit Streak 20 | 1 7 7 12 20 Robot Miss Streak 3 | 1 3 2 2 2 Penetration Max . | . . . . . Secondary Targets 4 | . . . 1 3 Max Gunslinging Chain 1 | . . . 1 1 Shots Hit Robots 135 | 1 34 10 40 50 Core Hits 54 | 1 16 5 11 21 Critical Kills . | . . . . . Critical Parts Destroyed . | . . . . . Critical Strikes 8 | . 2 . 2 4 Burn 8 | . 2 . 2 4 Melee Attacks . | . . . . . Impact . | . . . . . Slashing . | . . . . . Piercing . | . . . . . Sneak Attacks . | . . . . . Combat Hostiles . | . . . . . Follow-up Attacks . | . . . . . Damage Inflicted 2227 | 13 571 161 594 888 Guns 2042 | 13 481 161 594 793 Cannons . | . . . . . Explosions 185 | . 90 . . 95 Melee . | . . . . . Ramming . | . . . . . Kinetic 597 | 13 65 . 253 266 Thermal 1445 | . 416 161 341 527 Explosive 185 | . 90 . . 95 Electromagnetic . | . . . . . Impact . | . . . . . Slashing . | . . . . . Piercing . | . . . . . Highest Corruption 1 | . 1 . . . Average Corruption 1 | . 1 . . . Corruption Purged . | . . . . . Corruption Blocked . | . . . . . Effects 2 | . 2 . . . Matter Fused 1 | . 1 . . . Misfires 1 | . 1 . . . Overload Shots . | . . . . . Overflow Damage . | . . . . . Projectiles . | . . . . . Explosions . | . . . . . Melee . | . . . . . Knockbacks . | . . . . . Impact . | . . . . . Kinetic . | . . . . . Secondary . | . . . . . Self-Inflicted Damage 46 | . 28 . . 18 Shots 3 | . 2 . . 1 Rammed . | . . . . . Targets Rammed . | . . . . . Kicked . | . . . . . Crushed . | . . . . . Highest Temperature 576 | 9 576 369 318 361 Average Temperature 132 | 6 138 134 104 152 Received Heat Transfer 1116 | . 117 54 135 810 Effects 16 | . 10 1 4 1 Shutdowns 3 | . 3 . . . Energy Bleed 2 | . . . 1 1 Interference 7 | . 5 . 2 . Matter Decay 1 | . 1 . . . Short Circuit 1 | . . 1 . . Damage (minor) 2 | . 1 . 1 . Siege Activations . | . . . . . Robots Corrupted . | . . . . . Combat Hostiles . | . . . . . Parts Fried . | . . . . . Impact Corruptions . | . . . . . Robots Melted 1 | . . . 1 . Combat Hostiles 1 | . . . 1 . Parts Melted 9 | . 2 1 2 4 Heat Transferred 3772 | . 1184 370 962 1256 Parts Sabotaged . | . . . . . Parts Stolen . | . . . . . Parts Stripped . | . . . . . Power Chain Reactions . | . . . . . Alert | -11 -10 -9 -8 -8 ------- Run | Yrd Mat Mat Mat Gar Peak Influence 425 | 5 252 102 363 425 Initial 237 | . 3 1 42 237 Average 141 | 2 105 53 161 321 Maximum Alert Level 2 | . 1 . 1 2 Low Security (%) 67 | 100 88 100 53 . Level 1 29 | . 11 . 46 85 Level 2 2 | . . . . 14 Level 3 . | . . . . . Level 4 . | . . . . . Level 5 . | . . . . . High Security . | . . . . . Max Security . | . . . . . Squads Dispatched 4 | . 2 . 2 . Investigation 1 | . 1 . . . Extermination . | . . . . . Reinforcement 1 | . 1 . . . Assault . | . . . . . Garrison 2 | . . . 2 . Intercept . | . . . . . Searches Triggered . | . . . . . Construction Impeded . | . . . . . Haulers Reinforced . | . . . . . Active Scanning Responses . | . . . . . Cargo Convoy Interrupts . | . . . . . Stealth | -11 -10 -9 -8 -8 --------- Run | Yrd Mat Mat Mat Gar Distress Signals 4 | . 4 . . . Communications Jammed . | . . . . . Distress Signals . | . . . . . Times Spotted 47 | . 16 5 13 13 Peak Tracking Total 6 | . 4 2 4 6 Tactical Retreats 3 | . 1 . 1 1 Traps | -11 -10 -9 -8 -8 ------- Run | Yrd Mat Mat Mat Gar Traps Triggered 4 | . 2 . 1 1 Indirectly . | . . . . . Trap Hack Attempts . | . . . . . Triggered . | . . . . . Disarmed . | . . . . . Reprogrammed . | . . . . . Reused . | . . . . . Traps Extracted . | . . . . . Installed . | . . . . . Triggered . | . . . . . Machines | -11 -10 -9 -8 -8 ---------- Run | Yrd Mat Mat Mat Gar Machines Disabled . | . . . . . Max in Single Turn . | . . . . . Machines Repaired . | . . . . . Machines Dismantled . | . . . . . Machines Sabotaged . | . . . . . Overloaded Fab Kills . | . . . . . Hacking | -11 -10 -9 -8 -8 --------- Run | Yrd Mat Mat Mat Gar Machines Accessed 13 | . 6 2 3 2 Terminals 10 | . 6 1 1 2 Fabricators . | . . . . . Repair Stations 1 | . . . 1 . Recycling Units 1 | . . 1 . . Scanalyzers . | . . . . . Garrison Access 1 | . . . 1 . Total Hacks 33 | . 18 3 7 5 Successful 17 | . 7 3 5 2 Failed 16 | . 11 . 2 3 Catastrophic 4 | . 2 . 1 1 Database Lockouts . | . . . . . Manual 24 | . 18 3 3 . Terminals 28 | . 18 2 3 5 Fabricators . | . . . . . Repair Stations 3 | . . . 3 . Recycling Units 1 | . . 1 . . Scanalyzers . | . . . . . Garrison Access 1 | . . . 1 . Terminal Hacks 6 | . 2 1 1 2 Emergency Access Points 1 | . . . . 1 Terminal Index 2 | . 1 . 1 . Unreport Threat 1 | . 1 . . . Hauler Manifests 1 | . . 1 . . Patrol Navigation 1 | . . . . 1 Fabricator Hacks . | . . . . . Repair Station Hacks 2 | . . . 2 . Scan Component 1 | . . . 1 . Repair 1 | . . . 1 . Recycling Unit Hacks . | . . . . . Scanalyzer . | . . . . . Garrison Access Hacks 1 | . . . 1 . Unlock Access 1 | . . . 1 . Unauthorized Hacks 8 | . 5 2 1 . Terminals 7 | . 5 1 1 . Track 1 | . 1 . . . Botnet 6 | . 4 1 1 . Fabricators . | . . . . . Repair Stations . | . . . . . Recycling Units 1 | . . 1 . . Reject 1 | . . 1 . . Scanalyzers . | . . . . . Garrison Access . | . . . . . Data Cores Recovered 1 | . . 1 . . Used 1 | . . 1 . . Hacking Detections 11 | . 6 1 2 2 Full Trace Events 1 | . . . . 1 Feedback Events . | . . . . . Feedback Blocked . | . . . . . Robot Schematics Acquired . | . . . . . Robots Built . | . . . . . Authchips . | . . . . . Time . | . . . . . Total Robot Build Rating . | . . . . . Part Schematics Acquired . | . . . . . Parts Built . | . . . . . Authchips . | . . . . . Time . | . . . . . Total Part Build Rating . | . . . . . Parts Repaired 1 | . . . 1 . Time 53 | . . . 53 . Parts Recycled . | . . . . . Recycled Matter . | . . . . . Retrieved Matter . | . . . . . Retrieved Components . | . . . . . Parts Scanalyzed . | . . . . . Part Schematics Acquired . | . . . . . Parts Damaged . | . . . . . Bothacking | -11 -10 -9 -8 -8 ------------ Run | Yrd Mat Mat Mat Gar Used RIF Installer . | . . . . . Robots Hacked . | . . . . . Non-combat . | . . . . . Combat . | . . . . . Robot Hacks Applied . | . . . . . Relay Couplers Released . | . . . . . Fabnet Peak Effective % . | . . . . . Robots Rewired . | . . . . . Allies Hacked . | . . . . . Hacks Repelled . | . . . . . Allies | -11 -10 -9 -8 -8 -------- Run | Yrd Mat Mat Mat Gar Total Allies . | . . . . . Largest Group . | . . . . . Highest-Rated Group . | . . . . . Highest-Rated Ally . | . . . . . Total Orders . | . . . . . Ally Attacks . | . . . . . Total Damage . | . . . . . Kills . | . . . . . Allies Corrupted . | . . . . . Allies Melted . | . . . . . Intel | -11 -10 -9 -8 -8 ------- Run | Yrd Mat Mat Mat Gar Robot Analysis Total . | . . . . . Derelict Logs Recovered . | . . . . . Drone Launches 3 | . . . . 3 Drone Recoveries . | . . . . . Exploration | -11 -10 -9 -8 -8 ------------- Run | Yrd Mat Mat Mat Gar Turns Passed 1611 | 111 612 262 327 299 Spaces Moved 711 | 59 288 136 114 114 Core 27 | 4 . . . 23 Treads 656 | 55 288 136 114 63 Legs . | . . . . . Wheels . | . . . . . Hover 28 | . . . . 28 Flight . | . . . . . Fastest Speed 50 | 50 160 145 145 50 Average Speed 148 | 152 160 150 150 116 Slowest Speed 225 | 160 160 225 151 200 Overloaded Moves . | . . . . . Propulsion Burnouts . | . . . . . Robots Hopped . | . . . . . Cave-ins Triggered . | . . . . . Exploration Rate (%) 23 | 4 65 17 12 17 Regions Visited 4 Branch Regions . Pre-discovered Areas . | . . . . . Known Exits Taken 3 | . 1 1 1 . Unknown Exits Taken 1 | 1 . . . . Scrap Searched . | . . . . . Spaces Dug . | . . . . . Terrain Destroyed 15 | . 7 . . 8 Melee . | . . . . . Projectile . | . . . . . AOE 15 | . 7 . . 8 Terrain Rammed . | . . . . . Walls Destroyed . | . . . . . Machines Disabled . | . . . . . Actions | -11 -10 -9 -8 -8 --------- Run | Yrd Mat Mat Mat Gar Total 1068 | 75 385 179 215 214 Wait 156 | 5 51 10 58 32 Move 708 | 58 287 135 114 114 Hop . | . . . . . Pick Up 22 | 4 4 8 4 2 Fast Attach 22 | 7 4 2 . 9 Attach 8 | . . 1 2 5 Detach 4 | . 2 . . 2 Swap 18 | . 5 4 3 6 Drop 28 | . 5 11 3 9 Fire 102 | 1 27 8 31 35 Melee . | . . . . . Ram . | . . . . . Kick . | . . . . . Crush . | . . . . . Escape Stasis . | . . . . . Rewire . | . . . . . Trap . | . . . . . Miscellaneous . | . . . . . Route ------- -11/Scrapyard -10/Materials (discovered 2 exits: *Mat / *Min) -9/Materials -8/Materials -8/Garrison History --------- Turn | Location | Event 2 | -11/Scrapyard | Met Revision 17 2 | -11/Scrapyard | Discovered new exit (range 16) 112 | -11/Scrapyard | Entered Materials 337 | -10/Materials | Discovered new exit (range 6) 341 | -10/Materials | Build established: Mutant 378 | -10/Materials | Identified exit to Mines 707 | -10/Materials | Discovered new exit (range 12) 723 | -10/Materials | Identified exit to Materials 724 | -10/Materials | Entered another Materials area 724 | -9/Materials | Evolved 2 slots: Utility x2 955 | -9/Materials | Discovered new exit (range 16) 984 | -9/Materials | Identified exit to Materials 986 | -9/Materials | Entered another Materials area 986 | -8/Materials | Evolved 2 slots: Propulsion x2 1097 | -8/Materials | Repaired Broken Adv. Treads 1116 | -8/Materials | Garrison activated, responded to threat 1313 | -8/Materials | Identified exit to Garrison 1313 | -8/Materials | Entered Garrison 1556 | -8/Garrison | Core integrity fell below 50% 1569 | -8/Garrison | Core integrity fell below 20% 1592 | -8/Garrison | Lost 13 parts (2p4n3u4w) 1612 | -8/Garrison | Destroyed by Y-45 Defender with Heavy Assault Rifle Last Messages --------------- Beam Rifle destroyed. Com. Battery destroyed. Adv. Treads destroyed. Lgt. Nuclear Core destroyed. Hvy. Assault Rifle destroyed. Signal Interpreter destroyed. Critical hit (Burn: +37). G-47 Trooper destroyed. Rocket Launcher destroyed. Acquired Mni. Drone Bay. Mini Drone released from Mni. Drone Bay. Dropped Mni. Drone Bay. Critical hit (Burn: +37). >> Lost connection to Mini Drone. Acquired Enh. Gauss Cannon. Acquired Point Defense System. Acquired Hyp. Coil Gun. Acquired Gyrokinetic Inverter. Acquired 81 matter. Acquired Aluminum Leg. Map ----- +----------------------------------------------------+ | ?????????????????????????????????????????????????? | | ?????????????????????????????????????????????????? | | ?????????????????????????????????????????????????? | | ?????????????????????????????????????????????????? | | ?????????????????????????????????????????????????? | | ?????????????????????????????????????????????????? | | ?????????????????????????????????????????????????? | | ?????????????????????????????????????????????????? | | ?????????????????????????????????????????????????? | | ?????????????????????????????????????????????????? | | ?????????????????????????????????????????????????? | | ?????????????????????????????????????????????????? | | ?????????????????????????????????????????????????? | | ?????????????????????????????????????????????????? | | ?????????????????????????????????????????????????? | | ?????????????????????????????????????????????????? | | ?????????????????????????????????????????????????? | | ?????????????????????????????????????????????????? | | ?????????????????????????????????????????????????? | | ?????????????????????????????????????????????????? | | ???????????????????????####??????????????????????? | | ???????????????????????# +???????+??????????????? | | ???????????????????????# #+?????????????????????? | | ????????######?????????# #??????????????????????? | | ????????# = !#?????????# #??????????????????????? | | ????????#===[#??????##?# @#??????????????????????? | | ????????# *= #??????#"## #+#????????????????????? | | ????????###=%#??????#" #????????????????????? | | ??????????#!*#??????#" #????????????????????? | | ??????????# !#??????#" #????????????????????? | | ??????????# #??????#"## ###????????????????????? | | ???######## #??????##?# #??????????????????????? | | ???#" ########### ###########????????????? | | ???#"T"#### #????????????+ | | ???#####??# +????????????? | | ??????????############## ####+### #????????????? | | ???????????????????????# #????????????????+?????+ | | ?????????############??# #??????????????????????? | | ?????????#""""""""""#??# #??????????????????????? | | ?????????#"""!!] !!"#### g#### ##????????????????? | | ?????????#"" ## !+% +?????++????????? | | ?????????#" #+## #T = ## ## #???????????????? | | ?????????#"! ^# ?# ## #??????????""?????????? | | ?????????#" # ?# # % ##+### ???????+ | | ?????????#" ##+#% ???????? | | ?????????#"" !%% % ???????? | | ?????????#"""!!/!! "#### ###### ## ???????? | | ?????????#""""""""""#??## ##???????#????????????? | | ?????????############???# ##?????????????????????? | | ????????????????????????# ???+??????????????????? | +----------------------------------------------------+ Best States ------------- Heat Dissipation 51 Energy Generation 14 Energy Capacity 465 Matter Stores 300 Matter Capacity 300 Sight Range 16 Terrain Scan Range 16 Terrain Scan Density 10 Propulsion Shielding 66 Point Defense Rating 80 Evasion (%) 51 Recoil Reduction 4 Item Schematics ----------------- None Robot Schematics ------------------ None Fabricated ------------ Nothing Alien Tech Used ----------------- None Achievements -------------- None Challenges ------------ None Game ------ Seed InertialCloakRegenerator Manual? 0 Play Time 00:17:35 Cumulative 35.1 hours Start 2024.04.11 @ 13:15:22 End 2024.04.11 @ 13:31:14 Sessions 1 Manual Loads 0 Difficulty Rogue Special Mode None Game No. 55 Rogue 55 Adventurer 0 Explorer 0 Win Type - Total 0 Types 0/0/0/0/0/0/0/0/0 Lore% 22 Gallery% 37 Achievement% 30 Wizard Run 0 Options --------- Layout 1 ASCII 0 Keyboard 0 Movement Mouse Keybinds 0 Fullscreen 1 Font 32/SmallcapsGlow Map View 50x35 Zoom Use 0% Tactical HUD 0 Map Filters NONE Filters NONE Steam 1 RUN: 1e9d098e-8a22-4afd-94e2-8e017993a08c